bitfinex/quotes_ETHUSD_20251018
["timestamp","ask_amount","ask_price","bid_price","bid_amount"]
[1760793948518,1e-08,3882.3,3882.2,2.80713828]
[1760793949110,1e-08,3882.3,3882.2,3.25013828]
[1760793950047,1e-08,3882.3,3882.2,3.27589687]
[1760793950213,1e-08,3882.3,3882.2,3.25013828]
[1760793950900,1e-08,3882.3,3882.2,2.80713828]
[1760793951302,1e-08,3882.3,3882.2,3.34564624]
[1760793952723,1e-08,3882.3,3882.2,2.80713828]
[1760793953951,1e-08,3882.3,3882.2,0.23127924]
[1760793954451,1e-08,3882.3,3882.2,2.80713828]
[1760793954755,1e-08,3882.3,3882.2,0.23127924]
[1760793954948,0.09940001,3882.3,3882.2,2.80713828]
[1760793955250,1e-08,3882.3,3882.2,2.80713828]
[1760793955914,1e-08,3882.3,3882.2,3.25013828]
[1760793956113,1e-08,3882.3,3882.2,3.832949]
[1760793956750,1e-08,3882.3,3882.2,3.389949]
[1760793959066,1e-08,3882.3,3882.2,3.832949]
[1760793962571,1e-08,3882.3,3882.2,5.560949]
[1760793962769,1e-08,3882.3,3882.2,6.066549]
[1760793962977,1e-08,3882.3,3882.2,6.194549]
[1760793963289,1e-08,3882.3,3882.2,3.832949]
[1760793963512,1e-08,3882.3,3882.2,5.996949]
[1760793963664,1e-08,3882.3,3882.2,3.389949]
[1760793964691,0.09900001,3882.3,3882.2,0.23127924]
[1760793964879,0.09900001,3882.3,3882.2,0.10327924]
[1760793965486,0.09900001,3882.3,3882.2,2.67913828]
[1760793965680,1e-08,3882.3,3882.2,2.67913828]
[1760793966281,1e-08,3882.3,3882.2,2.80713828]
[1760793967592,1e-08,3882.3,3882.2,3.23703828]
[1760793967792,1e-08,3882.3,3882.2,2.80713828]
[1760793968697,0.10020001,3882.3,3882.2,2.80713828]
[1760793968912,1e-08,3882.3,3882.2,2.80713828]
[1760793972031,1e-08,3882.3,3882.2,0.23127924]
[1760793972216,0.10020001,3882.3,3882.2,2.80713828]
[1760793972615,1e-08,3882.3,3882.2,0.23127924]
[1760793972820,0.10020001,3882.3,3882.2,0.10327924]
[1760793973020,0.10020001,3882.3,3882.2,2.67913828]
[1760793975015,0.10020001,3882.3,3882.2,0.10327924]
[1760793975408,0.10020001,3882.3,3882.2,2.67913828]
[1760793975807,0.10020001,3882.3,3882.2,0.10327924]
[1760793976231,1e-08,3882.3,3882.2,0.10327924]
[1760793976537,0.22820001,3882.3,3882.1,0.002]
[1760793976707,0.02564314,3882.2,3882.1,0.002]
[1760793977108,0.12584314,3882.2,3882.1,0.002]
[1760793981469,0.12584314,3882.2,3881.7,0.86266587]
[1760793981623,0.12584314,3882.2,3881.5,2.57830445]
[1760793981624,0.1263,3881.8,3881.5,2.57830445]
[1760793981952,0.1008,3881.7,3881.5,0.7768244]
[1760793982257,0.2296,3881.6,3881.5,0.002]
[1760793982659,0.1288,3881.6,3881.5,0.002]
[1760793982969,0.17369692,3881.6,3881.5,0.002]
[1760793983121,0.27449692,3881.6,3881.5,0.002]
[1760793984231,0.17134006,3881.6,3881.5,0.002]
[1760793984433,0.76956401,3881.6,3881.5,0.002]
[1760793986130,0.79520715,3881.6,3881.5,0.002]
[1760793987565,0.84010881,3881.6,3881.5,0.002]
[1760793988998,0.81446567,3881.6,3881.5,0.002]
[1760793989464,0.84010881,3881.6,3881.5,0.002]
[1760793990245,7.23010881,3881.6,3881.5,0.002]
[1760793990568,7.20446567,3881.6,3881.5,0.002]
[1760793991860,7.10366567,3881.6,3881.5,0.002]
[1760793993862,7.20446567,3881.6,3881.5,0.002]
[1760793994672,8.93246567,3881.6,3881.5,0.002]
[1760793995245,11.57962267,3881.6,3881.5,0.002]
[1760793995447,11.53472101,3881.6,3881.5,0.002]
[1760793995970,12.16832101,3881.6,3881.5,0.002]
[1760793997140,12.57245315,3881.6,3881.5,0.002]
[1760793997340,26.81089815,3881.6,3881.5,0.002]
[1760793997546,20.94633915,3881.6,3881.5,0.002]
[1760793997777,20.39138415,3881.6,3881.5,0.002]
[1760793997973,20.43629518,3881.6,3881.5,0.002]
[1760793998380,21.13528718,3881.6,3881.5,0.002]
[1760793998948,20.49277618,3881.6,3881.5,0.002]
[1760793999343,21.37262018,3881.6,3881.5,0.002]
[1760793999548,20.72033618,3881.6,3881.5,0.002]
[1760794000570,21.57973518,3881.6,3881.5,0.002]
[1760794001084,20.92039618,3881.6,3881.5,0.002]
[1760794001482,21.56918318,3881.6,3881.5,0.002]
[1760794001779,20.92539618,3881.6,3881.5,0.002]
[1760794001976,20.00139618,3881.6,3881.5,0.002]
[1760794002181,14.22771418,3881.6,3881.5,0.002]
[1760794002382,13.40414518,3881.6,3881.5,0.002]
[1760794002795,13.00001304,3881.6,3881.5,0.002]
[1760794002952,9.46527504,3881.6,3881.5,0.002]
[1760794003590,12.06445304,3881.6,3881.5,0.002]
[1760794003788,12.16525304,3881.6,3881.5,0.002]
[1760794006200,12.56937625,3881.6,3881.5,0.002]
[1760794008421,35.24823225,3881.6,3881.5,0.002]
[1760794008575,22.15687125,3881.6,3881.5,0.002]
[1760794008773,20.06637225,3881.6,3881.5,0.002]
[1760794009017,18.33837225,3881.6,3881.5,0.002]
[1760794009396,20.87889125,3881.6,3881.5,0.002]
[1760794009610,19.21356525,3881.6,3881.5,0.002]
[1760794010509,27.08507425,3881.6,3881.5,0.002]
[1760794010809,25.20368225,3881.6,3881.5,0.002]
[1760794010978,23.89534225,3881.6,3881.5,0.002]
[1760794011809,21.90034225,3881.6,3881.5,0.002]
[1760794012316,23.62834225,3881.6,3881.5,0.002]
[1760794012510,31.58622225,3881.6,3881.5,0.002]
[1760794012672,29.33904422,3881.6,3881.5,0.002]
[1760794012872,16.05144522,3881.6,3881.5,0.002]
[1760794013218,16.15224522,3881.6,3881.5,0.002]
[1760794013619,21.53348522,3881.6,3881.5,0.002]
[1760794013918,8.8784,3881.5,3881.4,0.002]
[1760794014083,9.89659382,3881.5,3881.4,0.002]
[1760794015108,9.89659382,3881.5,3881.4,0.4528]
[1760794016216,9.26299382,3881.5,3881.4,0.4528]
[1760794017431,9.26299382,3881.5,3881.4,0.002]
[1760794018136,9.26299382,3881.5,3881.4,0.4528]
[1760794018439,9.6671244,3881.5,3881.4,0.002]
[1760794018608,29.7634224,3881.5,3881.4,0.002]
[1760794018806,13.6853824,3881.5,3881.4,0.002]
[1760794019532,12.6815724,3881.5,3881.4,0.002]
[1760794019734,11.8555354,3881.5,3881.4,0.002]
[1760794020402,9.6671244,3881.5,3881.4,0.4528]
[1760794021700,18.4599324,3881.5,3881.4,0.002]
[1760794022814,22.0824894,3881.5,3881.4,0.002]
[1760794023022,22.1817894,3881.5,3881.4,0.002]
[1760794023430,17.1148684,3881.5,3881.4,0.002]
[1760794023633,16.71073782,3881.5,3881.4,0.002]
[1760794023830,21.93524582,3881.5,3881.4,0.002]
[1760794024438,22.56884582,3881.5,3881.4,0.002]
[1760794024905,24.57384582,3881.5,3881.4,0.002]
[1760794025303,22.57384582,3881.5,3881.4,0.002]
[1760794025914,38.5841454,3881.5,3881.4,0.002]
[1760794026116,32.0119904,3881.5,3881.4,0.002]
[1760794027035,36.2299874,3881.5,3881.4,0.002]
[1760794027236,32.34602282,3881.5,3881.4,0.002]
[1760794027439,29.28030082,3881.5,3881.4,0.002]
[1760794027936,33.8561184,3881.5,3881.4,0.002]
[1760794028133,31.68396988,3881.5,3881.4,0.002]
[1760794028335,34.26029346,3881.5,3881.4,0.002]
[1760794028906,34.8024083,3881.5,3881.4,0.002]
[1760794029310,34.7031083,3881.5,3881.4,0.002]
[1760794029511,32.8299363,3881.5,3881.4,0.002]
[1760794030015,37.1396953,3881.5,3881.4,0.002]
[1760794030621,37.0176,3881.1,3881.0,0.002]
[1760794030823,9.36379502,3881.1,3881.0,0.002]
[1760794031028,39.46309502,3881.1,3881.0,0.002]
[1760794031221,39.9122169,3881.1,3881.0,0.002]
[1760794031420,38.8572789,3881.1,3881.0,0.002]
[1760794031645,15.4979149,3881.1,3881.0,0.002]
[1760794032148,16.0215929,3881.1,3881.0,0.002]
[1760794032326,15.4979149,3881.1,3881.0,0.002]
[1760794032926,16.0066719,3881.1,3881.0,0.002]
[1760794033133,15.5972149,3881.1,3881.0,0.002]
[1760794033526,15.19300984,3881.1,3881.0,0.002]
[1760794033727,15.09370984,3881.1,3881.0,0.002]
[1760794033929,5.49322184,3881.1,3881.0,0.002]
[1760794034324,5.49322184,3881.1,3881.0,0.4585]
[1760794034325,1.77291682,3881.1,3881.0,0.4585]
[1760794037531,0.04491682,3881.1,3881.0,0.4585]
[1760794037952,0.02564314,3881.5,3881.0,0.4585]
[1760794038351,0.04491129,3881.1,3881.0,0.4585]
[1760794042566,8.79051129,3881.1,3881.0,0.002]
[1760794042765,9.03596242,3881.1,3881.0,0.002]
[1760794042952,9.03596242,3881.1,3881.0,0.4585]
[1760794043163,8.99105113,3881.1,3881.0,0.4585]
[1760794043451,8.112,3881.1,3881.0,0.4585]
[1760794046087,8.112,3881.1,3881.0,0.002]
[1760794051764,8.112,3881.1,3881.0,0.4585]
[1760794052348,8.112,3881.1,3881.0,0.002]
[1760794055252,22.159178,3881.1,3881.0,0.002]
[1760794055566,13.722963,3881.1,3881.0,0.002]
[1760794055961,13.623963,3881.1,3881.0,0.002]
[1760794056165,13.722963,3881.1,3881.0,0.002]
[1760794056486,13.623963,3881.1,3881.0,0.002]
[1760794057367,11.201811,3881.1,3881.0,0.002]
[1760794057583,8.112,3881.1,3881.0,0.002]
[1760794057787,8.97800893,3881.1,3881.0,0.002]
[1760794058086,8.97900893,3881.1,3881.0,0.002]
[1760794060347,9.07800893,3881.1,3881.0,0.002]
[1760794061488,8.97900893,3881.1,3881.0,0.002]
[1760794066573,8.97900893,3881.1,3881.0,0.4674]
[1760794066871,8.113,3881.1,3881.0,0.4674]
[1760794067086,8.113,3881.1,3881.0,0.002]
[1760794067286,8.113,3881.1,3881.0,0.4674]
[1760794071691,8.113,3881.1,3881.0,0.002]
[1760794075897,8.212,3881.1,3881.0,0.002]
[1760794076217,9.07810893,3881.1,3881.0,0.002]
[1760794077836,8.97910893,3881.1,3881.0,0.002]
[1760794079809,8.113,3881.1,3881.0,0.4674]
[1760794082454,8.113,3881.1,3881.0,0.002]
[1760794084122,17.17890982,3881.1,3881.0,0.002]
[1760794084309,10.91138382,3881.1,3881.0,0.002]
[1760794084651,8.25691282,3881.1,3881.0,0.002]
[1760794084850,9.02402261,3881.1,3881.0,0.002]
[1760794085481,8.113,3881.1,3881.0,0.002]
[1760794085637,8.15791381,3881.1,3881.0,0.442]
[1760794085815,8.113,3881.1,3881.0,0.442]
[1760794086211,8.113,3881.1,3881.0,0.002]
[1760794086443,8.212,3881.1,3881.0,0.002]
[1760794086779,8.97461851,3881.1,3881.0,0.002]
[1760794088448,9.07361851,3881.1,3881.0,0.002]
[1760794088621,9.11853265,3881.1,3881.0,0.002]
[1760794089315,9.01953265,3881.1,3881.0,0.002]
[1760794091437,8.15791414,3881.1,3881.0,0.002]
[1760794091644,8.113,3881.1,3881.0,0.002]
[1760794093543,8.212,3881.1,3881.0,0.002]
[1760794094070,6.385,3881.1,3881.0,0.002]
[1760794094650,6.42991432,3881.1,3881.0,0.002]
[1760794094962,7.12322426,3881.1,3881.0,0.002]
[1760794097740,7.07830994,3881.1,3881.0,0.002]
[1760794097945,6.385,3881.1,3881.0,0.442]
[1760794100404,6.385,3881.1,3881.0,3.79361]
[1760794101000,0.001,3881.1,3881.0,3.79361]
[1760794101176,0.001,3881.1,3881.0,3.94817655]
[1760794101385,0.001,3881.1,3881.0,6.30310592]
[1760794101817,0.001,3881.1,3881.0,4.57510592]
[1760794101962,0.001,3881.1,3881.0,4.60087247]
[1760794103055,0.001,3881.1,3881.0,6.30310592]
[1760794103262,0.001,3881.1,3881.0,6.93670592]
[1760794103471,0.001,3881.1,3881.0,7.25798465]
[1760794104281,0.001,3881.1,3881.0,15.60693265]
[1760794105970,0.001,3881.1,3881.0,7.25798465]
[1760794106373,0.001,3881.1,3881.0,9.54070592]
[1760794111082,0.001,3881.1,3881.0,16.16700392]
[1760794111285,0.001,3881.1,3881.0,9.54070592]
[1760794111803,0.001,3881.1,3881.0,14.67351192]
[1760794112713,0.001,3881.1,3881.0,12.82489492]
[1760794113909,0.001,3881.1,3881.0,9.54070592]
[1760794114404,0.001,3881.1,3881.0,9.53720592]
[1760794114916,0.001,3881.1,3881.0,9.53620592]
[1760794116719,0.001,3881.1,3881.0,8.90260592]
[1760794117621,0.001,3881.1,3881.0,4.13310592]
[1760794119722,0.1018,3881.1,3881.0,4.13310592]
[1760794119895,0.001,3881.1,3881.0,3.48041]
[1760794125398,0.001,3881.1,3881.0,3.48241]
[1760794126738,0.001,3881.1,3881.0,3.95547655]
[1760794127333,0.001,3881.1,3881.0,3.80091]
[1760794127535,0.001,3881.1,3881.0,3.92971]
[1760794127702,0.001,3881.1,3881.0,4.58055927]
[1760794129375,0.001,3881.1,3881.0,7.18355927]
[1760794131240,0.001,3881.1,3881.0,7.81715927]
[1760794138993,0.001,3881.1,3881.0,9.54515927]
[1760794141201,0.1,3881.1,3881.0,4.13325927]
[1760794141377,0.1,3881.1,3881.0,3.48241]
[1760794143884,0.001,3881.1,3881.0,3.48241]
[1760794144085,0.1,3881.1,3881.0,3.48241]
[1760794147410,0.001,3881.1,3881.0,3.50817655]
[1760794147632,0.001,3881.1,3881.0,4.5871716]
[1760794148277,0.001,3881.1,3881.0,4.1168716]
[1760794148480,0.001,3881.1,3881.0,4.09110505]
[1760794149015,0.1,3881.1,3881.0,4.09110505]
[1760794149417,0.1,3881.1,3881.0,3.48241]
[1760794150410,0.001,3881.1,3881.0,3.48241]
[1760794153519,0.1,3881.1,3881.0,3.48241]
[1760794153710,0.001,3881.1,3881.0,3.48241]
[1760794154947,0.001,3881.1,3881.0,3.97847655]
[1760794155159,0.001,3881.1,3881.0,7.4964016]
[1760794155310,0.001,3881.1,3881.0,7.47063505]
[1760794159453,0.001,3881.1,3881.0,8.10423505]
[1760794161157,0.001,3881.1,3881.0,9.83223505]
[1760794161368,0.001,3881.1,3881.0,26.47529805]
[1760794161860,0.001,3881.1,3881.0,24.23765805]
[1760794162364,0.001,3881.1,3881.0,22.82920405]
[1760794162821,0.001,3881.1,3881.0,22.51176205]
[1760794164451,0.001,3881.1,3881.0,9.83223505]
[1760794165117,0.001,3881.1,3881.0,20.36929205]
[1760794165449,0.001,3881.1,3881.0,16.00315605]
[1760794166576,0.001,3881.1,3881.0,14.78510605]
[1760794168578,0.001,3881.1,3881.0,12.90125205]
[1760794173180,0.001,3881.1,3881.0,9.83223505]
[1760794173384,0.001,3881.1,3881.0,28.81721005]
[1760794173554,0.001,3881.1,3881.0,26.18417805]
[1760794174281,0.001,3881.1,3881.0,28.50561605]
[1760794174479,0.001,3881.1,3881.0,14.17026105]
[1760794174687,0.001,3881.1,3881.0,14.63046105]
[1760794174859,0.001,3881.1,3881.0,11.56826105]
[1760794175181,0.001,3881.1,3881.0,9.36093505]
[1760794177992,0.001,3881.1,3881.0,15.48310805]
[1760794178204,0.001,3881.1,3881.0,15.08701905]
[1760794178591,0.001,3881.1,3881.0,9.36093505]
[1760794178787,0.001,3881.1,3881.0,15.74453605]
[1760794179102,0.001,3881.1,3881.0,9.82113505]
[1760794179300,0.001,3881.1,3881.0,19.86809105]
[1760794179459,0.001,3881.1,3881.0,14.80339105]
[1760794180064,0.001,3881.1,3881.0,9.82113505]
[1760794180269,0.001,3881.1,3881.0,17.44485705]
[1760794181169,0.001,3881.1,3881.0,9.36093505]
[1760794183209,0.001,3881.1,3881.0,12.07793505]
[1760794183509,0.001,3881.1,3881.0,9.36093505]
[1760794184176,0.001,3881.1,3881.0,6.75993505]
[1760794184369,0.1006,3881.1,3881.0,3.48241]
[1760794184608,0.1006,3881.1,3881.0,7.81141]
[1760794187809,0.1006,3881.1,3881.0,6.08341]
[1760794189605,0.001,3881.1,3881.0,6.08341]
[1760794193589,0.1006,3881.1,3881.0,6.08341]
[1760794194106,0.1006,3881.1,3881.0,3.48241]
[1760794194413,0.1006,3881.1,3881.0,6.08341]
[1760794196328,0.001,3881.1,3881.0,6.08341]
[1760794198598,0.1006,3881.1,3881.0,6.08341]
[1760794199397,0.001,3881.1,3881.0,6.08341]
[1760794200998,0.1006,3881.1,3881.0,6.08341]
[1760794201218,0.1006,3881.1,3881.0,5.21041]
[1760794201418,0.1006,3881.1,3881.0,3.48241]
[1760794201700,0.1006,3881.1,3881.0,0.9057545]
[1760794201912,0.1006,3881.1,3881.0,0.7769545]
[1760794202737,0.1006,3881.1,3881.0,0.002]
[1760794203328,0.12624314,3881.1,3881.0,0.002]
[1760794204036,0.1006,3881.1,3881.0,0.002]
[1760794204254,0.12624314,3881.1,3881.0,0.002]
[1760794205841,0.17114685,3881.1,3881.0,0.002]
[1760794206019,0.83954154,3881.1,3881.0,0.002]
[1760794206330,0.79463783,3881.1,3881.0,0.002]
[1760794208726,0.83954253,3881.1,3881.0,0.002]
[1760794213238,7.22354253,3881.1,3881.0,0.002]
[1760794213440,7.19789939,3881.1,3881.0,0.002]
[1760794214155,8.92589939,3881.1,3881.0,0.002]
[1760794214356,17.25752439,3881.1,3881.0,0.002]
[1760794214557,14.86434239,3881.1,3881.0,0.002]
[1760794214726,15.45303769,3881.1,3881.0,0.002]
[1760794215426,24.64259169,3881.1,3881.0,0.002]
[1760794215759,23.45654369,3881.1,3881.0,0.002]
[1760794215949,21.64324369,3881.1,3881.0,0.002]
[1760794216148,19.66604569,3881.1,3881.0,0.002]
[1760794216357,13.52998069,3881.1,3881.0,0.002]
[1760794216955,9.51459469,3881.1,3881.0,0.002]
[1760794217260,14.77954969,3881.1,3881.0,0.002]
[1760794217554,12.64832209,3881.1,3881.0,0.002]
[1760794218256,9.55950609,3881.1,3881.0,0.002]
[1760794218460,8.92590609,3881.1,3881.0,0.002]
[1760794219223,9.55950609,3881.1,3881.0,0.002]
[1760794219437,21.80965109,3881.1,3881.0,0.002]
[1760794219954,22.21388768,3881.1,3881.0,0.002]
[1760794220357,21.07969868,3881.1,3881.0,0.002]
[1760794220759,21.07969868,3881.1,3880.7,0.002]
[1760794220967,14.7976,3880.6,3880.5,0.002]
[1760794221259,8.106,3880.6,3880.5,0.002]
[1760794221465,8.2088,3880.6,3880.5,0.002]
[1760794221660,23.76110083,3880.6,3880.5,0.002]
[1760794221861,24.42949552,3880.6,3880.5,0.002]
[1760794222037,18.24437652,3880.6,3880.5,0.002]
[1760794222662,34.84841852,3880.6,3880.5,0.002]
[1760794222858,33.09646234,3880.6,3880.5,0.002]
[1760794223060,22.17928434,3880.6,3880.5,0.002]
[1760794223480,22.31087226,3880.6,3880.5,0.002]
[1760794223679,30.52255626,3880.6,3880.5,0.002]
[1760794224070,21.36095934,3880.6,3880.5,0.002]
[1760794224863,23.95250734,3880.6,3880.5,0.002]
[1760794225066,22.64391834,3880.6,3880.5,0.002]
[1760794225769,25.37746634,3880.6,3880.5,0.002]
[1760794225983,24.09496634,3880.6,3880.5,0.002]
[1760794226340,24.09596634,3880.6,3880.5,0.002]
[1760794226642,24.09596634,3880.6,3880.2,0.002]
[1760794226852,24.09596634,3880.6,3879.3,0.4509]
[1760794226853,15.977004,3880.2,3879.3,0.4509]
[1760794227370,16.079804,3880.2,3879.3,0.4509]
[1760794227560,16.12472582,3880.2,3879.3,0.4509]
[1760794227776,16.12472582,3880.2,3879.2,0.4509]
[1760794228399,14.12472582,3880.2,3879.2,0.4509]
[1760794228839,14.75832582,3880.2,3879.2,0.4509]
[1760794229044,15.42672051,3880.2,3879.2,0.4509]
[1760794229999,15.83100704,3880.2,3879.2,0.4509]
[1760794232079,15.83100704,3880.2,3879.4,0.4509]
[1760794232705,8.8624,3880.1,3879.4,0.4509]
[1760794232872,8.7336,3880.1,3879.4,0.4509]
[1760794233591,8.7336,3880.1,3879.7,0.4529]
[1760794233777,0.9851203,3880.0,3879.7,0.4529]
[1760794235094,0.02564314,3879.9,3879.7,0.002]
[1760794235310,0.9851203,3880.0,3879.7,0.449]
[1760794235606,0.9851203,3880.0,3879.8,0.447]
[1760794235822,0.9851203,3880.0,3879.9,0.447]
[1760794236303,0.1288,3879.9,3879.7,0.002]
[1760794236475,0.02564314,3879.8,3879.7,0.002]
[1760794236675,6.39764314,3879.8,3879.7,0.002]
[1760794236926,6.372,3879.8,3879.7,0.449]
[1760794237072,6.41692187,3879.8,3879.7,0.449]
[1760794245925,6.41692187,3879.8,3879.7,0.002]
[1760794246126,7.05871406,3879.8,3879.7,0.002]
[1760794247353,7.16151406,3879.8,3879.7,0.002]
[1760794248055,0.78951406,3879.8,3879.7,0.002]
[1760794248253,0.14772187,3879.8,3879.7,0.002]
[1760794248431,0.04492187,3879.8,3879.7,0.002]
[1760794250062,0.14772187,3879.8,3879.7,0.002]
[1760794252653,0.17336501,3879.8,3879.7,0.002]
[1760794254845,4.25288001,3879.8,3879.7,0.002]
[1760794255138,4.718698,3879.8,3879.7,0.002]
[1760794255538,4.67377613,3879.8,3879.7,0.002]
[1760794258576,4.7187005,3879.8,3879.7,0.002]
[1760794258877,0.6391855,3879.8,3879.7,0.002]
[1760794259060,0.17336751,3879.8,3879.7,0.002]
[1760794259377,0.07056751,3879.8,3879.7,0.002]
[1760794260684,0.04492437,3879.8,3879.7,0.449]
[1760794261398,0.07056751,3879.8,3879.7,0.002]
[1760794261797,6.44256751,3879.8,3879.7,0.449]
[1760794262002,6.41692437,3879.8,3879.7,0.449]
[1760794262308,7.0991468,3879.8,3879.7,0.002]
[1760794263109,7.0991468,3879.8,3879.7,0.449]
[1760794263268,6.41692437,3879.8,3879.7,0.449]
[1760794266402,6.54572437,3879.8,3879.7,0.449]
[1760794266602,6.41692437,3879.8,3879.7,3.02651888]
[1760794266802,6.41692437,3879.8,3879.7,0.449]
[1760794267105,6.372,3879.8,3879.7,0.449]
[1760794267317,6.372,3879.8,3879.7,3.02651888]
[1760794269117,6.372,3879.8,3879.7,0.002]
[1760794269324,7.02218,3879.8,3879.7,0.002]
[1760794269834,7.12228,3879.8,3879.7,0.002]
[1760794270030,8.8952032,3879.8,3879.7,0.002]
[1760794270894,19.7993962,3879.8,3879.7,0.002]
[1760794271094,19.11960718,3879.8,3879.7,0.002]
[1760794271802,20.70115218,3879.8,3879.7,0.002]
[1760794272513,19.30623418,3879.8,3879.7,0.002]
[1760794272910,22.24448818,3879.8,3879.7,0.002]
[1760794273313,21.87925618,3879.8,3879.7,0.002]
[1760794274027,26.10244418,3879.8,3879.7,0.002]
[1760794275024,26.10244418,3879.8,3879.6,0.002]
[1760794275025,26.10795418,3879.8,3879.6,0.002]
[1760794275223,9.832763,3879.5,3879.3,0.002]
[1760794275523,6.39364314,3879.4,3879.3,0.002]
[1760794275737,8.932851,3879.4,3879.3,0.002]
[1760794276133,9.48222832,3879.4,3879.3,0.002]
[1760794276827,25.76735732,3879.4,3879.3,0.002]
[1760794277034,26.01318759,3879.4,3879.3,0.002]
[1760794277694,27.81427959,3879.4,3879.3,0.002]
[1760794277902,22.01018859,3879.4,3879.3,0.002]
[1760794278132,14.66466359,3879.4,3879.3,0.002]
[1760794278734,14.56456359,3879.4,3879.3,0.002]
[1760794278934,8.79110759,3879.4,3879.3,0.002]
[1760794279228,8.79110759,3879.4,3879.3,0.4562]
[1760794279435,8.79110759,3879.4,3879.3,0.002]
[1760794279930,9.19547206,3879.4,3879.3,0.002]
[1760794283148,19.08393906,3879.4,3879.3,0.002]
[1760794283328,17.80143906,3879.4,3879.3,0.002]
[1760794283530,17.22232906,3879.4,3879.3,0.002]
[1760794283737,11.48532006,3879.4,3879.3,0.002]
[1760794286533,11.58542006,3879.4,3879.3,0.002]
[1760794286951,31.60058506,3879.4,3879.3,0.002]
[1760794287154,15.064112,3879.0,3878.9,0.002]
[1760794287320,14.2516942,3879.0,3878.9,0.002]
[1760794287845,14.70102052,3879.0,3878.9,0.002]
[1760794288032,14.13920323,3879.0,3878.9,0.002]
[1760794288620,8.27680623,3879.0,3878.9,0.002]
[1760794288843,6.77039503,3879.0,3878.9,0.002]
[1760794289555,23.12351103,3879.0,3878.9,0.002]
[1760794290273,23.16844325,3879.0,3878.9,0.002]
[1760794290862,22.76404822,3879.0,3878.9,0.002]
[1760794291260,27.92379222,3879.0,3878.9,0.002]
[1760794291461,24.66665622,3879.0,3878.9,0.002]
[1760794291663,16.74863722,3879.0,3878.9,0.002]
[1760794292479,22.65570622,3879.0,3878.9,0.002]
[1760794292654,21.19951122,3879.0,3878.9,0.002]
[1760794292851,8.77253222,3879.0,3878.9,0.002]
[1760794293170,6.362,3878.8,3878.5,0.002]
[1760794293369,8.723625,3878.6,3878.5,0.002]
[1760794293539,0.6336,3878.6,3878.5,0.002]
[1760794293740,1.03804017,3878.6,3878.5,0.4562]
[1760794293988,1.08297508,3878.6,3878.5,0.002]
[1760794294282,2.00027259,3878.6,3878.5,0.002]
[1760794297377,2.02591573,3878.6,3878.5,0.002]
[1760794298179,2.00027259,3878.6,3878.5,0.002]
[1760794298577,0.44937508,3878.6,3878.5,0.002]
[1760794298802,0.47501822,3878.6,3878.5,0.4577]
[1760794299006,0.47501822,3878.6,3878.5,0.002]
[1760794299202,0.47501822,3878.6,3878.5,0.4577]
[1760794299912,0.47501822,3878.6,3878.5,0.002]
[1760794300118,1.3058769,3878.6,3878.5,0.002]
[1760794300314,1.33152004,3878.6,3878.5,0.002]
[1760794300483,0.47501822,3878.6,3878.5,0.4577]
[1760794301110,0.44937508,3878.6,3878.5,0.4577]
[1760794301800,0.44937508,3878.6,3878.5,0.002]
[1760794302109,0.44937508,3878.6,3878.5,0.4577]
[1760794302313,0.44937508,3878.6,3878.5,0.002]
[1760794302521,1.3058769,3878.6,3878.5,0.002]
[1760794302886,9.93512404,3878.6,3878.5,0.002]
[1760794303199,7.5279219,3878.6,3878.5,0.002]
[1760794303717,13.8899219,3878.6,3878.5,0.002]
[1760794304381,14.5235219,3878.6,3878.5,0.002]
[1760794304617,14.6233219,3878.6,3878.5,0.002]
[1760794305111,23.0642449,3878.6,3878.5,0.002]
[1760794305303,20.0227519,3878.6,3878.5,0.002]
[1760794305817,19.97781699,3878.6,3878.5,0.002]
[1760794306012,25.30234499,3878.6,3878.5,0.002]
[1760794306181,25.30234499,3878.6,3877.2,0.55912745]
[1760794306182,6.354,3878.0,3877.2,0.55912745]
[1760794306392,0.66104314,3877.9,3877.5,0.4557]
[1760794306822,1.06552907,3877.9,3877.5,0.4557]
[1760794307016,0.66104314,3877.9,3877.5,0.4557]
[1760794307918,0.66104314,3877.9,3876.7,3.13862526]
[1760794308100,0.66104314,3877.9,3877.7,0.4577]
[1760794308612,0.66104314,3877.9,3877.7,0.002]
[1760794308919,2.89525103,3877.8,3877.7,0.002]
[1760794309607,9.24925103,3877.8,3877.7,0.002]
[1760794310420,9.29419709,3877.8,3877.7,0.002]
[1760794311317,9.69870237,3877.8,3877.7,0.002]
[1760794311490,7.48790237,3877.8,3877.7,0.002]
[1760794311819,7.48790237,3877.8,3877.7,0.4577]
[1760794312539,7.48790237,3877.8,3877.7,0.002]
[1760794313249,7.48790237,3877.8,3877.7,0.4577]
[1760794313431,6.80345134,3877.8,3877.7,0.4577]
[1760794313945,6.75850528,3877.8,3877.7,0.4577]
[1760794315036,6.75850528,3877.8,3877.7,0.002]
[1760794315618,6.354,3877.8,3877.7,3.03654828]
[1760794315836,0.001,3879.6,3878.1,2.57853005]
[1760794315837,6.354,3879.3,3878.1,2.57853005]
[1760794316181,2.38904314,3879.2,3878.2,0.6697]
[1760794316451,0.1288,3878.3,3878.2,0.214]
[1760794316623,0.1288,3878.3,3877.7,0.002]
[1760794316624,7.858602,3878.0,3877.7,0.002]
[1760794316816,1.728,3877.8,3877.7,0.002]
[1760794317019,1.90346431,3877.8,3877.7,0.002]